[Event "SVK ECo-C Extraliga 2021-22"]
[Site "Slovakia"]
[Date "2022.06.10"]
[Round "9.16"]
[White "Gajdosik, Andrej"]
[Black "Kovacik Emil"]
[Result "1/2-1/2"]
[ECO "E05"]
[WhiteElo "2023"]
[BlackElo "2041"]
[Annotator "TA"]
[PlyCount "109"]
[EventDate "2021.10.21"]
[EventType "team-tourn"]
[EventCountry "SVK"]
[SourceTitle "playchess.com"]
[Source "ChessBase"]
[SourceQuality "1"]
[TimeControl "40/5400+30:1800+30"]

{[%evp 15,109,-50,-12,-79,8,-110,-127,-125,-57,-32,-31,-58,-64,-77,-78,-70,-74,-79,-65,-120,-118,-157,-120,-119,-120,-122,-118,-116,-122,-116,-88,-83,-99,-172,-160,-165,-158,-149,-100,-91,-88,-88,-6,-50,-35,-88,-88,-147,-90,-90,-88,-108,-39,-88,-39,-88,-88,-88,0,-21,0,-88,-70,-88,0,-16,-2,-44,0,0,0,0,0,0,0,0,0,0,0,0,0,0,0,0,0,0,0,0,0,0,0,0,0,0,0,0]} 1. d4 {[%emt 0:00:09]} d5 {[%emt 0:00:14]} 2. Nf3 {[%emt 0:00:35]} Nf6 {[%emt 0:00:12]} 3. c4 {[%emt 0:00:17]} e6 {[%emt 0:00:27]} 4. Nc3 {[%emt 0:00:35]} Be7 {[%emt 0:02:05]} 5. g3 {[%emt 0:04:01]} O-O {[%emt 0:05:23]} 6. Bg2 {[%emt 0:00:14]} dxc4 {[%emt 0:00:20]} 7. O-O {[%emt 0:01:26]} Nc6 {[%emt 0:03:00]} 8. e4 {[%emt 0:07:08]} Rb8 $1 {[%emt 0:07:14] The main line 8...Rb8 scores better than 8...a6.} 9. Qa4 {[%emt 0:29:12] E05: Open Catalan: 5 Nf3 Be7.} (9. Qe2 $11) 9... Nb4 {[%emt 0:20:56] [#]} (9... Nxd4 $17 10. Nxd4 Qxd4) 10. Qxa7 $146 {[%emt 0:22:57] [#]} (10. a3 $1 $11 Bd7 11. Qd1) ({Predecessor:} 10. Be3 b5 11. Qd1 Nd3 12. Ne1 b4 13. Na4 Bd7 14. Nxd3 cxd3 15. Re1 Bb5 16. Nc5 Bxc5 17. dxc5 {1-0 (43) Santl,A (2206)-Rolle,E (2113) Bad Woerishofen 2001}) 10... Bd7 $1 $17 {[%emt 0:00:42]} (10... Nc6 11. Qa4 $11) 11. Ne5 {[%emt 0:03:14] Black is better.} Nc6 {[%emt 0:18:09]} (11... Qc8 $17 {White must now prevent ...Ra8.} 12. Nxd7 (12. Nxc4 $2 Ra8 $19) 12... Qxd7) 12. Nxc6 $15 {[%emt 0:01:14]} Bxc6 {[%emt 0:00:45]} 13. d5 {[%emt 0:01:14]} exd5 {[%emt 0:05:02]} 14. exd5 {[%emt 0:00:34]} Nxd5 {[%emt 0:06:03]} 15. Nxd5 {[%emt 0:03:39]} Bxd5 {[%emt 0:00:44]} 16. Rd1 {[%emt 0:00:26]} Ra8 {[%emt 0:01:09]} 17. Qd4 {[%emt 0:02:17]} ({Better is} 17. Qe3 $15 c6 18. Bxd5 cxd5 19. Qe5) 17... Bxg2 $17 {[%emt 0:00:27]} 18. Kxg2 {[%emt 0:01:05]} Qxd4 {[%emt 0:05:39]} 19. Rxd4 {[%emt 0:00:06]} b5 {[%emt 0:00:45]} 20. Rd7 {[%emt 0:11:14][%csl LRc7,LRe7]} Bd6 {[%emt 0:04:55]} 21. Bf4 {[%emt 0:02:22]} Bxf4 {[%emt 0:08:08]} 22. gxf4 {[%emt 0:00:04][%mdl 4096] Endgame KRR-KRR} c5 {[%emt 0:04:01]} 23. Rd5 {[%emt 0:01:58]} Rfc8 {[%emt 0:00:14]} 24. Re1 {[%emt 0:00:40]} (24. a3 $17) 24... Kf8 $19 {[%emt 0:01:06]} (24... Rxa2 25. Rxc5 Raa8 26. Rxb5 $11) 25. Rd7 {[%emt 0:00:26]} Re8 {[%emt 0:01:14] Against Ree7} ({Inferior is} 25... Rxa2 26. Ree7 Kg8 27. Rxf7 $11) 26. Red1 {[%emt 0:03:10]} Re4 {[%emt 0:02:20]} (26... b4 $142 27. a4 bxa3 28. bxa3 Re4) 27. Rc7 $17 {[%emt 0:02:36]} Rxf4 {[%emt 0:01:03] aiming for ...Rg4+.} ({Don't do} 27... Rxa2 28. Rdd7 $16) 28. Rxc5 {[%emt 0:00:31]} Rb8 {[%emt 0:00:17]} (28... Rxa2 $17 29. Rxb5 g6) 29. Kg3 {[%emt 0:00:34]} Rf6 {[%emt 0:00:13]} 30. Rd7 {[%emt 0:00:30]} (30. Rdd5 $15) 30... g6 {[%emt 0:00:25]} 31. Rcc7 {[%emt 0:00:16]} ({White should try} 31. h4) 31... h5 {[%emt 0:00:45]} (31... Re8 $142 {And now ...Re2 would win.} 32. Rd2 Re5) 32. Rc5 {[%emt 0:00:59]} Kg7 {[%emt 0:00:14][%cal Oh5h4]} 33. Rdd5 {[%emt 0:00:31]} Rfb6 {[%emt 0:00:40]} (33... Re8 $17 {...Re2 is the strong threat.} 34. Re5 (34. Rxb5 $2 Re4 $19) 34... Rxe5 35. Rxe5 Ra6 36. Rxb5 Rxa2) 34. h4 {[%emt 0:00:35]} (34. b3 $15) 34... Kf6 {[%emt 0:00:17]} (34... Ra8 $17 35. Rxb5 Rc6) 35. Kf4 {[%emt 0:00:14]} (35. b3 $15 {is more appropriate.}) 35... R8b7 {[%emt 0:00:31]} 36. f3 {[%emt 0:00:12]} Ke6 {[%emt 0:00:18]} (36... Ra6 $17 37. Rxb5 Rc7) 37. Re5+ {[%emt 0:00:10]} Kf6 {[%emt 0:00:03]} (37... Kd7 $11) 38. Red5 {[%emt 0:00:03]} Kg7 {[%emt 0:00:22]} 39. Kg3 {[%emt 0:00:25]} f6 {[%emt 0:00:14]} (39... Ra6 $17 40. Rxb5 Rc7) 40. Kf4 {[%emt 0:00:17]} Kf7 {[%emt 0:00:05]} 41. Ke4 {[%emt 0:30:52]} Ke6 {[%emt 0:30:06]} 42. f4 {[%emt 0:00:00] The position is equal.} Rd7 {[%emt 0:00:00]} 43. f5+ {[%emt 0:00:00]} gxf5+ {[%emt 0:00:00]} 44. Rxf5 {[%emt 0:00:00]} Rd2 {[%emt 0:00:00]} 45. Rxb5 {[%emt 0:00:00]} Rxb2 {[%emt 0:00:00]} 46. Rxb6+ {[%emt 0:00:00]} Rxb6 {[%emt 0:00:00]} 47. Rxh5 $11 {[%emt 0:00:00] KR-KR} Rc6 {[%emt 0:00:00]} 48. Rf5 {[%emt 0:00:00]} c3 {[%emt 0:00:00]} 49. Rf1 {[%emt 0:00:00]} c2 {[%emt 0:00:00]} 50. Rc1 {[%emt 0:00:00]} Rc4+ {[%emt 0:00:00]} 51. Kd3 {[%emt 0:00:00]} Rxh4 {[%emt 0:00:00]} 52. Rxc2 {[%emt 0:00:00]} f5 {[%emt 0:00:00]} 53. Rc6+ {[%emt 0:00:00]} Kd5 {[%emt 0:00:00]} 54. Rc8 {[%emt 0:00:00]} Rh3+ {[%emt 0:00:00]} 55. Ke2 {[%emt 0:00:00] Weighted Error Value: White=0.18 (very precise) /Black=0.20 (precise)} 1/2-1/2

[Event "SVK ECo-C Extraliga 2021-22"]
[Site "Slovakia"]
[Date "2022.06.10"]
[Round "9.17"]
[White "Mihok, Oliver"]
[Black "Gazik, Viktor"]
[Result "1-0"]
[ECO "B69"]
[WhiteElo "2539"]
[BlackElo "2549"]
[Annotator "TA"]
[PlyCount "85"]
[EventDate "2021.10.21"]
[EventType "team-tourn"]
[EventCountry "SVK"]
[SourceTitle "playchess.com"]
[Source "ChessBase"]
[SourceQuality "1"]
[TimeControl "40/5400+30:1800+30"]

{[%evp 22,85,54,53,42,22,33,17,37,16,36,17,29,7,7,-10,18,25,25,26,38,30,27,12,96,27,34,0,77,91,66,70,80,86,145,155,145,143,185,167,195,197,314,293,620,604,586,193,197,191,180,191,195,182,191,177,225,240,347,326,876,110,890,887,829,812]} 1. e4 {[%emt 0:00:05]} c5 {[%emt 0:00:09]} 2. Nf3 {[%emt 0:00:04]} d6 {[%emt 0:00:13]} 3. d4 {[%emt 0:00:05]} cxd4 {[%emt 0:00:06]} 4. Nxd4 {[%emt 0:00:04]} Nf6 {[%emt 0:00:06]} 5. Nc3 {[%emt 0:00:03]} Nc6 {[%emt 0:00:06]} 6. Bg5 {[%emt 0:01:43]} e6 {[%emt 0:00:07]} 7. Qd2 {[%emt 0:02:23]} a6 {[%emt 0:00:07]} 8. O-O-O {[%emt 0:00:46]} Bd7 {[%emt 0:00:06]} 9. f4 {[%emt 0:01:07][%cal Bf2f4,Bf4f5][%mdl 32]} Be7 {[%emt 0:04:04]} 10. Nf3 {[%emt 0:00:45]} b5 {[%emt 0:00:27]} 11. Bxf6 {[%emt 0:00:15]} gxf6 {[%emt 0:00:05]} 12. f5 {[%emt 0:00:55]} h5 {[%emt 0:09:57] B69: Sicilian: Richter-Rauzer: 7...a6 8 0-0-0 Bd7 9 f4 Be7 10 Nf3 b5 11 Bxf6.} 13. g3 {[%emt 0:09:49]} Rc8 {[%emt 0:17:32]} 14. Kb1 {[%emt 0:06:58]} Qa5 {[%emt 0:08:50] The position is equal.} 15. fxe6 {[%emt 0:06:35]} fxe6 {[%emt 0:01:06]} 16. Bh3 {[%emt 0:01:11]} Ne5 {[%emt 0:18:39]} 17. Nxe5 {[%emt 0:03:20]} fxe5 {[%emt 0:00:07]} 18. Rhf1 {[%emt 0:02:07]} b4 {[%emt 0:09:20]} 19. Ne2 {[%emt 0:00:17][%cal Bc3e2,Be2c1,Bc1d3][%mdl 32]} Qc5 {[%emt 0:08:00]} 20. Nc1 $40 {[%emt 0:02:07][%mdl 128] White attacks.} a5 {[%emt 0:03:31]} 21. Nd3 {[%emt 0:00:57]} Qd4 {[%emt 0:00:08]} 22. Qe2 {[%emt 0:01:47] [#] Threatening Qf3.} Qc4 $146 {[%emt 0:00:16]} (22... a4 $11 {keeps the balance.}) ({Predecessor:} 22... a4 23. Nf4 Qc4 24. Qxc4 Rxc4 25. Nxe6 Bxe6 26. Bxe6 Rxe4 27. Rf2 Rf8 28. Rfd2 a3 29. bxa3 bxa3 {0-1 (42) Eynullayev,A (2246)-Gabrielian,A (2465) Moscow 2020}) 23. Rf2 {[%emt 0:01:46]} (23. Qf2 $6 Kd8 $11) (23. b3 $1 $16 {[%cal Rb3c4]} Qb5 24. g4) 23... a4 $1 $11 {[%emt 0:04:40]} 24. Qf3 {[%emt 0:09:52][%cal Od3e5]} (24. b3 $5 {[%cal Rb3c4]} Qc3 25. bxa4 $14 (25. Qf3 Kd8 $11)) 24... Rh7 {[%emt 0:00:54]} (24... b3 $11 25. cxb3 axb3) 25. Bf1 $1 $16 {[%emt 0:05:14][%cal Od3e5] Hoping for Nxe5!} b3 {[%emt 0:03:48]} 26. cxb3 {[%emt 0:02:31]} axb3 {[%emt 0:00:02] White stays focused until the end.} 27. a3 {[%emt 0:00:47]} (27. Nxe5 $2 Qc2+ $3 {[%mdl 512]} 28. Rxc2 bxc2+ 29. Kc1 Bg5+ 30. Qf4 Bxf4+ 31. gxf4 cxd1=Q+ $19) 27... Bc6 {[%emt 0:03:41]} (27... Qc2+ $142 28. Rxc2 bxc2+ 29. Ka2 cxd1=N) 28. Re1 $1 {[%emt 0:02:57]} ({Much less strong is} 28. Rc1 $6 Qd4 $14) 28... Qd4 {[%emt 0:00:43] [#]} 29. Nb4 $1 {[%emt 0:01:05]} Bb7 {[%emt 0:01:59]} 30. Bb5+ {[%emt 0:03:26]} Kd8 {[%emt 0:00:01]} 31. Rfe2 {[%emt 0:00:32]} Bg5 {[%emt 0:06:30]} (31... d5 {is a better defense.}) 32. Qxb3 $18 {[%emt 0:02:49]} ({But not} 32. h4 Be7 33. Qxb3 Rh6 $18) 32... Bd2 $2 {[%emt 0:00:20]} (32... Ke7 33. Rd1 Qc5) 33. Rd1 {[%emt 0:04:58]} Bxe4+ {[%emt 0:00:02] [#]} 34. Ka2 $2 {[%emt 0:01:28]} (34. Rxe4 $1 {[%mdl 512]} Qxe4+ 35. Bd3) 34... Qxb4 {[%emt 0:00:32]} 35. axb4 {[%emt 0:00:40] The board is on fire.} Ra7+ {[%emt 0:01:14] [#]} 36. Qa4 $3 {[%emt 0:02:06]} Bd5+ {[%emt 0:00:22] A strong pair of Bishops.} 37. Ka3 $1 {[%emt 0:00:33]} Rxa4+ {[%emt 0:00:13]} 38. Bxa4 {[%emt 0:00:05]} Bg5 {[%emt 0:00:45]} (38... Bh6 $142 39. Rc2 Rb8) 39. Rf2 {[%emt 0:00:53]} Be3 {[%emt 0:00:39]} (39... Kc7 {was necessary.} 40. Rc2+ Kb7 41. Rxc8 Kxc8) 40. Rf7 {[%emt 0:00:32]} Rc7 $2 {[%emt 0:00:32]} (40... Rc1 41. Rxc1 Bxc1 42. Rd7+ Kc8 43. Rxd6 e4) 41. Rf8+ {[%emt 0:30:36]} Ke7 {[%emt 0:30:07]} 42. Rdf1 {[%emt 0:00:05][%csl Ga4][%cal Rf8e8]} Bf4 {[%emt 0:00:00]} 43. Re8+ {[%emt 0:00:00] Weighted Error Value: White=0.20 (precise) /Black=0.38} ({Not} 43. gxf4 Kxf8 44. fxe5+ Ke7 $14) 1-0

[Event "SVK ECo-C Extraliga 2021-22"]
[Site "Slovakia"]
[Date "2022.06.10"]
[Round "9.19"]
[White "Toth, Ervin"]
[Black "Polak, Tomas"]
[Result "1-0"]
[ECO "D36"]
[WhiteElo "2433"]
[BlackElo "2506"]
[Annotator "TA"]
[PlyCount "117"]
[EventDate "2021.10.21"]
[EventType "team-tourn"]
[EventCountry "SVK"]
[SourceTitle "playchess.com"]
[Source "ChessBase"]
[SourceQuality "1"]
[TimeControl "40/5400+30:1800+30"]

{[%evp 27,117,0,8,0,10,0,0,0,0,0,0,0,17,0,0,0,0,0,53,53,41,42,127,136,156,150,161,124,181,178,172,181,183,172,305,305,303,304,382,379,408,405,921,905,989,966,932,913,840,531,485,487,667,432,456,446,536,536,433,419,731,846,784,722,978,950,1575,895,691,886,534,866,866,814,656,608,4702,3002,29965,29967,29968,29970,29970,29971,29973,29974,29973,29975,29975,29975,29976,29973]} 1. d4 {[%emt 0:00:19]} Nf6 {[%emt 0:00:20]} 2. c4 {[%emt 0:00:51]} e6 {[%emt 0:00:15]} 3. Nc3 {[%emt 0:00:08]} d5 {[%emt 0:01:21]} 4. cxd5 {[%emt 0:01:27]} exd5 {[%emt 0:00:06]} 5. Bg5 {[%emt 0:00:19]} c6 {[%emt 0:00:16]} 6. Qc2 {[%emt 0:01:14]} Be7 {[%emt 0:00:25]} 7. e3 {[%emt 0:00:25]} O-O {[%emt 0:02:47]} 8. Bd3 {[%emt 0:00:33]} Nbd7 {[%emt 0:00:09]} 9. Nf3 {[%emt 0:02:55]} Re8 {[%emt 0:00:27]} 10. O-O {[%emt 0:00:07]} Nf8 {[%emt 0:00:16]} 11. Ne5 {[%emt 0:00:46]} Ng4 {[%emt 0:03:49]} 12. Bxe7 {[%emt 0:02:34]} Qxe7 {[%emt 0:01:40]} 13. Nxg4 {[%emt 0:00:26]} Bxg4 {[%emt 0:00:06]} 14. Rae1 {[%emt 0:00:05]} Rad8 {[%emt 0:04:09]} 15. f4 {[%emt 0:02:13] D36: Queen's Gambit Declined: Exchange Variation: Main line (5 Bg5 c6 6 Qc2).} f6 {[%emt 0:02:04]} 16. h3 {[%emt 0:02:15]} Bh5 {[%emt 0:01:01]} 17. g4 {[%emt 0:15:56] The position is equal.} Bg6 {[%emt 0:01:29]} 18. f5 {[%emt 0:02:44]} Bf7 {[%emt 0:00:07] [#]} 19. Qg2 $146 {[%emt 0:02:23]} ({Predecessor:} 19. Rf3 c5 20. dxc5 Qxc5 21. Ne2 Qa5 22. Qb1 Nd7 23. Nd4 Ne5 24. Rf2 Nxd3 25. Qxd3 Qxe1+ 26. Kg2 Qxe3 27. Qxe3 Rxe3 28. Rc2 Rd3 29. Nb5 a6 {0-1 (29) Mira,H (2096)-Essing,A (2253) Playchess.com INT 2004}) 19... a6 {[%emt 0:06:14]} 20. Rf3 {[%emt 0:06:09]} Kh8 {[%emt 0:13:03]} 21. Ref1 {[%emt 0:06:21]} c5 {[%emt 0:06:34]} 22. h4 {[%emt 0:02:19]} Qd6 {[%emt 0:12:25]} (22... Nd7 $11) 23. Qf2 $14 {[%emt 0:09:31]} Re7 {[%emt 0:04:56]} 24. Ne2 {[%emt 0:00:22]} Rde8 {[%emt 0:02:44] White stays focused until the end.} ({Black should try} 24... h6 $14) 25. Nf4 $1 $16 {[%emt 0:01:10]} cxd4 {[%emt 0:06:09]} 26. exd4 {[%emt 0:00:11]} Qb4 {[%emt 0:00:23]} 27. a3 {[%emt 0:03:40]} Qa5 {[%emt 0:01:02] [#]} (27... Qb6 $16 {was necessary.}) 28. g5 $1 $18 {[%emt 0:03:02] Strongly threatening h5.} Re1 {[%emt 0:01:45]} 29. g6 $36 {[%emt 0:01:00][%mdl 2048] Black is under strong pressure.} Rxf1+ {[%emt 0:01:53]} 30. Kxf1 {[%emt 0:00:10]} (30. Qxf1 $2 {is the wrong capture.} Re1 31. gxf7 Rxf1+ 32. Rxf1 Qc7 $17) 30... hxg6 {[%emt 0:02:08]} (30... Bg8 {was worth a try.} 31. Kg2 h6) 31. fxg6 {[%emt 0:01:32]} Be6 {[%emt 0:02:19]} 32. h5 {[%emt 0:05:33][%cal Bh4h5,Bh5h6][%mdl 32] aiming for Qh4.} ({Not} 32. Re3 Qa4 $16) 32... Bg4 {[%emt 0:10:15] [#]} 33. Rg3 {[%emt 0:00:37]} Qa4 {[%emt 0:00:30]} 34. h6 {[%emt 0:10:42]} Qd7 {[%emt 0:10:01]} (34... a5 $142 35. Nxd5 f5) 35. Qh2 {[%emt 0:00:20]} Re4 {[%emt 0:02:23]} 36. Bxe4 {[%emt 0:03:02]} dxe4 {[%emt 0:00:05]} 37. Qh4 {[%emt 0:01:06]} f5 {[%emt 0:00:22]} 38. Nh5 {[%emt 0:10:36]} Bxh5 {[%emt 0:02:28]} 39. Qxh5 {[%emt 0:00:07][%mdl 4096] Endgame KQR-KQN} Qb5+ {[%emt 0:00:50]} 40. Kg1 {[%emt 0:01:11] Intending Rh3 and mate.} Qd5 {[%emt 0:00:19]} 41. Kh2 {[%emt 0:31:14]} Kg8 {[%emt 0:08:00]} 42. h7+ {[%emt 0:00:00]} Kh8 {[%emt 0:00:06]} 43. Qg5 {[%emt 0:00:00] White wants to mate with Qe7.} Qb5 {[%emt 0:04:22]} (43... Qxd4 $142 44. Qxf5 Qd2+ 45. Kh3 Qh6+ 46. Kg4 Qxg6+ 47. Qxg6 Nxg6) 44. Rg2 {[%emt 0:00:00] Qd8 would kill now.} Qd7 {[%emt 0:09:08] Inhibits Qd8.} 45. Qf4 {[%emt 0:00:00] Threatens to win with Qb8.} Qd8 {[%emt 0:04:32]} 46. Kh3 {[%emt 0:00:00]} Qf6 {[%emt 0:04:27]} 47. Qe5 {[%emt 0:00:00]} Nxg6 {[%emt 0:00:29]} 48. Qxf6 {[%emt 0:00:00]} Nf4+ {[%emt 0:00:05]} 49. Kg3 {[%emt 0:01:52] Threatening mate with Qf8+.} Nh5+ {[%emt 0:00:06]} 50. Kh4 {[%emt 0:00:10][%cal Oh4h5]} Nxf6 {[%emt 0:00:06] KR-KN} 51. Kg5 {[%emt 0:00:24]} Nd5 {[%emt 0:00:36]} 52. Kxf5 {[%emt 0:03:07]} Ne3+ {[%emt 0:00:07]} 53. Kxe4 {[%emt 0:00:03] White mates.} Nxg2 {[%emt 0:00:03] KN-KP} 54. d5 {[%emt 0:00:06][%cal Bd4d5,Bd5d6][%mdl 32]} g5 {[%emt 0:00:45]} 55. d6 {[%emt 0:00:05]} Nf4 {[%emt 0:00:07]} 56. Kf5 {[%emt 0:00:12]} Nd5 {[%emt 0:00:35]} 57. Kxg5 {[%emt 0:00:54]} Nb6 {[%emt 0:00:54]} 58. Kf6 {[%emt 0:01:07]} Kxh7 {[%emt 0:02:00]} 59. Ke6 {[%emt 0:00:24] Weighted Error Value: White=0.19 (very precise) /Black=0.45} 1-0

[Event "SVK ECo-C Extraliga 2021-22"]
[Site "Slovakia"]
[Date "2022.06.10"]
[Round "9.20"]
[White "Kraus, Tomas"]
[Black "Hujbert, Florian"]
[Result "1-0"]
[ECO "B40"]
[WhiteElo "2472"]
[BlackElo "2396"]
[Annotator "TA"]
[PlyCount "75"]
[EventDate "2021.10.21"]
[EventType "team-tourn"]
[EventCountry "SVK"]
[SourceTitle "playchess.com"]
[Source "ChessBase"]
[SourceQuality "1"]
[TimeControl "40/5400+30:1800+30"]

{[%evp 9,75,7,6,9,12,12,17,0,-6,-9,0,0,20,20,37,46,39,11,41,23,34,30,40,24,16,0,0,0,9,0,0,-9,18,-8,0,-32,-30,-21,33,23,49,49,64,59,66,58,147,108,111,102,104,106,246,276,262,259,356,307,325,168,324,329,443,443,775,762,29983,3410]} 1. e4 {[%emt 0:00:22]} c5 {[%emt 0:00:17]} 2. Nf3 {[%emt 0:00:28]} e6 {[%emt 0:03:09]} 3. g3 {[%emt 0:01:08]} Nc6 {[%emt 0:00:17]} 4. Bg2 {[%emt 0:00:15]} Nf6 {[%emt 0:00:30]} 5. Qe2 {[%emt 0:03:06]} e5 {[%emt 0:03:52]} 6. O-O {[%emt 0:01:32] B40: Sicilian: 2...e6, Unusual lines.} Be7 {[%emt 0:00:07]} 7. Na3 {[%emt 0:02:07][%cal Bb1a3,Ba3c4,Bc4e3][%mdl 32]} O-O {[%emt 0:01:45]} 8. c3 {[%emt 0:03:06] The position is equal.} Re8 {[%emt 0:02:46]} 9. Nc4 {[%emt 0:01:12]} Bf8 {[%emt 0:03:12][%cal Of6e4]} 10. d3 {[%emt 0:01:29]} d6 {[%emt 0:01:43]} 11. Bg5 {[%emt 0:12:39]} h6 {[%emt 0:06:03]} 12. Bxf6 {[%emt 0:01:40]} Qxf6 {[%emt 0:02:01]} 13. Ne3 {[%emt 0:06:01]} Qd8 {[%emt 0:04:54]} 14. Nd2 {[%emt 0:08:45]} Rb8 {[%emt 0:14:11]} 15. a4 {[%emt 0:02:38]} a6 {[%emt 0:00:30]} 16. f4 {[%emt 0:08:21]} exf4 {[%emt 0:00:20] [#]} 17. gxf4 $146 {[%emt 0:01:55]} ({Predecessor:} 17. Rxf4 Be6 18. Raf1 Qa5 19. Qd1 b5 20. axb5 axb5 21. Nd5 Ne5 22. Qc2 Qa7 23. Ne3 {0-1 (30) Gajwa,A (2281)-Shyam,N (2450) Port Blair 2017}) 17... b5 {[%emt 0:09:50]} 18. axb5 {[%emt 0:11:44]} axb5 {[%emt 0:00:30]} 19. Qf3 {[%emt 0:00:30]} Bb7 {[%emt 0:08:12]} 20. Kh1 {[%emt 0:05:44]} Kh8 {[%emt 0:04:01]} 21. Qg3 {[%emt 0:03:28]} Ne7 {[%emt 0:01:16]} 22. d4 {[%emt 0:04:13]} cxd4 {[%emt 0:06:26]} 23. cxd4 {[%emt 0:01:36]} Nc6 {[%emt 0:02:48]} ({Black should play} 23... Ra8 $11) 24. Nb3 $14 {[%emt 0:02:51]} Nb4 {[%emt 0:05:17]} 25. d5 $1 {[%emt 0:04:19]} Qf6 {[%emt 0:00:30] Against Nd4} 26. Qe1 {[%emt 0:00:30]} Na6 {[%emt 0:05:44]} ({Not} 26... Nd3 27. Qd2 Nc5 28. Nxc5 dxc5 29. e5 $16) 27. Qd2 {[%emt 0:00:49]} g6 {[%emt 0:04:16]} (27... Kg8 $14) 28. e5 {[%emt 0:02:24]} dxe5 {[%emt 0:01:05]} 29. Ng4 $1 $36 {[%emt 0:00:54][%csl LRe5,LRf6][%mdl 2048] White is really pushing.} Qg7 {[%emt 0:00:40]} 30. fxe5 {[%emt 0:03:48] Threatens to win with d6.} h5 {[%emt 0:04:16] [#] Black cannot hold the game after this.} (30... Rbd8 $16) 31. Nf6 $1 $18 {[%emt 0:00:26]} Rxe5 {[%emt 0:00:19] [#]} 32. Nd7 $1 {[%emt 0:01:26][%csl LRb8,LRe5] Pair of Knights!} Bd6 {[%emt 0:02:39]} 33. Nxb8 {[%emt 0:01:44]} Nxb8 {[%emt 0:00:05]} 34. Na5 {[%emt 0:01:29]} (34. Ra7 $142 Re7 35. Na5) 34... Re7 {[%emt 0:01:57]} (34... Bc8 35. Nc6 Re8 36. Nxb8 Bxb8) 35. Nc6 {[%emt 0:01:00]} Bxc6 {[%emt 0:01:03]} 36. dxc6 {[%emt 0:00:04]} Qe5 {[%emt 0:01:01]} (36... Bc7 $142 37. Rae1 Rxe1) 37. Bd5 {[%emt 0:01:34] Threatening mate with Qh6+. Active counter play!} Bb4 {[%emt 0:00:55]} 38. Qh6+ {[%emt 0:00:27] Weighted Error Value: White=0.12 (very precise) /Black=0.53} 1-0

[Event "SVK ECo-C Extraliga 2021-22"]
[Site "Slovakia"]
[Date "2022.06.10"]
[Round "9.21"]
[White "Urhegyi, Marton"]
[Black "Chovan, Milan"]
[Result "0-1"]
[ECO "C78"]
[WhiteElo "2232"]
[BlackElo "2339"]
[Annotator "TA"]
[PlyCount "59"]
[EventDate "2021.10.21"]
[EventType "team-tourn"]
[EventCountry "SVK"]
[SourceTitle "playchess.com"]
[Source "ChessBase"]
[SourceQuality "1"]
[TimeControl "40/5400+30:1800+30"]

{[%evp 24,59,15,33,20,0,0,14,14,0,0,-14,94,100,108,89,128,-51,-59,-58,-66,-51,-56,-222,-165,-145,-160,-204,-156,-156,-141,-142,808,-300,0,-79,0,-1067]} 1. e4 {[%emt 0:00:07]} e5 {[%emt 0:00:11]} 2. Nf3 {[%emt 0:00:20]} Nc6 {[%emt 0:00:12]} 3. Bb5 {[%emt 0:03:20]} a6 {[%emt 0:00:47]} 4. Ba4 {[%emt 0:01:23]} Nf6 {[%emt 0:00:13]} 5. O-O {[%emt 0:00:08]} b5 {[%emt 0:00:21]} 6. Bb3 {[%emt 0:00:07]} Bb7 {[%emt 0:00:09]} 7. Re1 {[%emt 0:00:39]} Bc5 {[%emt 0:00:13]} 8. c3 {[%emt 0:01:28]} d6 {[%emt 0:00:10]} 9. d4 {[%emt 0:01:22]} Bb6 {[%emt 0:00:10]} 10. Bg5 {[%emt 0:06:23]} h6 {[%emt 0:00:38]} 11. Bh4 {[%emt 0:05:56]} g5 {[%emt 0:00:26]} 12. Bg3 {[%emt 0:03:28]} O-O {[%emt 0:00:57]} 13. dxe5 {[%emt 0:04:33]} Nxe5 {[%emt 0:01:32] C78: Ruy Lopez: Archangelsk and Möller Defences.} 14. Nxe5 {[%emt 0:04:54]} dxe5 {[%emt 0:00:11]} 15. Nd2 {[%emt 0:04:21]} Qe7 {[%emt 0:13:18]} 16. a4 {[%emt 0:22:06]} Rad8 {[%emt 0:07:49]} 17. Qe2 {[%emt 0:02:38] [#]} Rd7 $146 {[%emt 0:18:11]} (17... Rd6 $11) ({Predecessor:} 17... Rd6 18. axb5 axb5 19. Nf1 Bc6 20. Bc2 Rfd8 21. Rac1 h5 22. h3 h4 23. Bh2 Qe6 {0-1 (33) Garcia,G (2445)-Beliavsky,A (2605) Novi Sad 1990}) 18. axb5 $16 {[%emt 0:01:53]} axb5 {[%emt 0:00:42]} 19. Nf3 $1 {[%emt 0:07:31]} Nxe4 {[%emt 0:04:25]} 20. Nxe5 $2 {[%emt 0:05:23]} (20. Qc2 $1 $16 c5 21. Rxe4 Bxe4 22. Qxe4) 20... Rd2 $15 {[%emt 0:14:20]} 21. Qh5 {[%emt 0:01:55] Threatens to win with Qg6+.} Bxf2+ {[%emt 0:03:32]} (21... Nxg3 22. Qg6+ Kh8 23. Qxh6+ Kg8 24. Ng4 (24. Qg6+ Kh8 $11) 24... Bxf2+ 25. Nxf2 Ne2+ 26. Kf1 $11) 22. Bxf2 {[%emt 0:02:38]} Qxe5 {[%emt 0:00:43] The board is on fire.} 23. Ra7 $2 {[%emt 0:06:47]} (23. Re2 $15) 23... Bd5 {[%emt 0:06:26]} (23... Rxf2 24. Qg6+ Qg7 25. Qxg7+ Kxg7 26. Rxb7 Rxb2 27. Rxe4 Rxb3 28. Rxc7 $17) ({Don't play} 23... Rxb2 24. Bd4 Qf5 25. Rxb7 (25. Qxh6 Rxg2+ 26. Kxg2 Qg4+ 27. Kf1 Nd2+ 28. Kf2 Qf3+ 29. Kg1 Qg2#) 25... Nxc3 26. Kh1 $1 $18 (26. Rxc7 $2 Ne2+ 27. Kh1 Nxd4 $19)) 24. Bxd5 {[%emt 0:04:34]} Qxd5 {[%emt 0:00:06]} 25. Qf3 {[%emt 0:02:32]} Rxf2 {[%emt 0:05:07]} ({Not} 25... f5 26. Be3 Rxb2 27. Rxc7 $17) 26. Qxe4 {[%emt 0:00:17]} Qxe4 {[%emt 0:03:53]} 27. Rxe4 {[%emt 0:00:05]} Rd8 $2 {[%emt 0:00:13][%mdl 8192]} 28. h4 $4 {[%emt 0:02:43][%mdl 8192] [#]} (28. Kxf2 $18 {is the narrow road to win.} c5 29. Ra5) 28... Rfd2 $2 {[%emt 0:02:11]} ({And not} 28... Rxb2 29. Rxc7 Rd1+ 30. Kh2 $17) (28... Rdd2 $1 $19 29. Rg4 f5) 29. Kh2 {[%emt 0:00:05]} (29. hxg5 $11 {keeps the balance.} Rxb2 30. gxh6) 29... f5 {[%emt 0:00:26]} (29... R8d5 $17 30. Rxc7 Rxb2) 30. Rg4 $2 {[%emt 0:01:59][%mdl 8192] Never resign too early!  Weighted Error Value: White=0.80/Black=0.62} 0-1